[Event "Titled Tuesday Blitz July 25 Late 2023"]
[White "Basso, Pier Luigi"]
[Black "Mordechai, Hanan"]
[WhiteFideId "866970"]
[BlackFideId "2804166"]
[WhiteElo "2786"]
[BlackElo "2561"]
[Result "1-0"]
[Round "5"]
[TimeControl "180+2"]
[Date "2023.07.25"]
[WhiteClock "0:00:12"]
[BlackClock "0:00:01"]
[Board "42"]

1. e4 {[%clk 0:03:00]}  c5 {[%clk 0:02:57]} 2. Nf3 {[%clk 0:03:00]}  e6 {[%clk 0:02:57]} 3. d4 {[%clk 0:03:00]}  cxd4 {[%clk 0:02:55]} 4. Nxd4 {[%clk 0:03:01]}  a6 {[%clk 0:02:55]} 5. c4 {[%clk 0:03:01]}  Nc6 {[%clk 0:02:53]} 6. Nc3 {[%clk 0:03:00]}  Bb4 {[%clk 0:02:50]} 7. Nxc6 {[%clk 0:02:45]}  bxc6 {[%clk 0:02:50]} 8. Qd3 {[%clk 0:02:43]}  e5 {[%clk 0:02:37]} 9. Be2 {[%clk 0:02:41]}  Nf6 {[%clk 0:02:36]} 10. O-O {[%clk 0:02:39]}  O-O {[%clk 0:02:17]} 11. Bd2 {[%clk 0:02:34]}  Be7 {[%clk 0:02:08]} 12. b3 {[%clk 0:02:31]}  Qc7 {[%clk 0:02:07]} 13. Rac1 {[%clk 0:02:30]}  d6 {[%clk 0:02:05]} 14. Rfd1 {[%clk 0:02:29]}  Be6 {[%clk 0:01:59]} 15. Bg5 {[%clk 0:02:24]}  Rfd8 {[%clk 0:01:46]} 16. Bxf6 {[%clk 0:02:04]}  Bxf6 {[%clk 0:01:45]} 17. Nd5 {[%clk 0:02:04]}  Qa7 {[%clk 0:00:50]} 18. Nxf6+ {[%clk 0:01:59]}  gxf6 {[%clk 0:00:51]} 19. c5 {[%clk 0:01:51]}  d5 {[%clk 0:00:43]} 20. exd5 {[%clk 0:01:51]}  cxd5 {[%clk 0:00:44]} 21. c6 {[%clk 0:01:46]}  Qc7 {[%clk 0:00:38]} 22. Qg3+ {[%clk 0:01:41]}  Kh8 {[%clk 0:00:38]} 23. Qh4 {[%clk 0:01:42]}  Qe7 {[%clk 0:00:33]} 24. Rc3 {[%clk 0:01:15]}  Rg8 {[%clk 0:00:32]} 25. Rg3 {[%clk 0:01:06]}  Rxg3 {[%clk 0:00:22]} 26. hxg3 {[%clk 0:01:07]}  Rc8 {[%clk 0:00:23]} 27. Rc1 {[%clk 0:01:05]}  a5 {[%clk 0:00:21]} 28. a3 {[%clk 0:00:54]}  Kg7 {[%clk 0:00:20]} 29. b4 {[%clk 0:00:53]}  axb4 {[%clk 0:00:19]} 30. axb4 {[%clk 0:00:54]}  d4 {[%clk 0:00:17]} 31. b5 {[%clk 0:00:51]}  Qb4 {[%clk 0:00:17]} 32. Bd3 {[%clk 0:00:48]}  h6 {[%clk 0:00:16]} 33. Qe4 {[%clk 0:00:45]}  Qd2 {[%clk 0:00:12]} 34. Rb1 {[%clk 0:00:43]}  Ba2 {[%clk 0:00:11]} 35. Rf1 {[%clk 0:00:40]}  Kf8 {[%clk 0:00:08]} 36. b6 {[%clk 0:00:39]}  Qc3 {[%clk 0:00:06]} 37. b7 {[%clk 0:00:39]}  Rb8 {[%clk 0:00:06]} 38. f4 {[%clk 0:00:32]}  Qc5 {[%clk 0:00:03]} 39. fxe5 {[%clk 0:00:31]}  fxe5 {[%clk 0:00:04]} 40. Qh7 {[%clk 0:00:18]}  Ke7 {[%clk 0:00:04]} 41. Qxh6 {[%clk 0:00:19]}  Be6 {[%clk 0:00:02]} 42. Rc1 {[%clk 0:00:14]}  Qa3 {[%clk 0:00:01]} 43. c7 {[%clk 0:00:13]}  Qxd3 {[%clk 0:00:01]} 44. cxb8=Q {[%clk 0:00:12]} 1-0


[Site "https://www.chess.com"]

[Event "Titled Tuesday Blitz July 25 Late 2023"]
[White "Pulpan, Jakub"]
[Black "NigelDwarf"]
[WhiteFideId "302759"]
[WhiteElo "2780"]
[BlackElo "2545"]
[Result "1-0"]
[Round "5"]
[TimeControl "180+2"]
[Date "2023.07.25"]
[WhiteClock "0:02:34"]
[BlackClock "0:01:43"]
[Board "43"]

1. Nf3 {[%clk 0:02:52]}  Nf6 {[%clk 0:02:59]} 2. b3 {[%clk 0:02:51]}  g6 {[%clk 0:02:58]} 3. Bb2 {[%clk 0:02:50]}  Bg7 {[%clk 0:02:58]} 4. g3 {[%clk 0:02:51]}  O-O {[%clk 0:02:57]} 5. Bg2 {[%clk 0:02:50]}  d6 {[%clk 0:02:56]} 6. d4 {[%clk 0:02:50]}  c5 {[%clk 0:02:55]} 7. c4 {[%clk 0:02:49]}  cxd4 {[%clk 0:02:44]} 8. Nxd4 {[%clk 0:02:50]}  Qc7 {[%clk 0:02:34]} 9. O-O {[%clk 0:02:50]}  Nc6 {[%clk 0:02:35]} 10. Nc3 {[%clk 0:02:50]}  Nxd4 {[%clk 0:02:33]} 11. Qxd4 {[%clk 0:02:51]}  Be6 {[%clk 0:02:34]} 12. Rac1 {[%clk 0:02:51]}  Qd7 {[%clk 0:02:28]} 13. Rfd1 {[%clk 0:02:49]}  Rfd8 {[%clk 0:02:16]} 14. Nd5 {[%clk 0:02:48]}  Bxd5 {[%clk 0:02:14]} 15. Bxd5 {[%clk 0:02:48]}  a6 {[%clk 0:02:12]} 16. Bf3 {[%clk 0:02:43]}  Rac8 {[%clk 0:02:10]} 17. a4 {[%clk 0:02:41]}  b5 {[%clk 0:02:06]} 18. cxb5 {[%clk 0:02:42]}  axb5 {[%clk 0:02:05]} 19. a5 {[%clk 0:02:43]}  e5 {[%clk 0:02:02]} 20. Qd3 {[%clk 0:02:37]}  Qe6 {[%clk 0:01:50]} 21. Rxc8 {[%clk 0:02:35]}  Rxc8 {[%clk 0:01:50]} 22. Bb7 {[%clk 0:02:35]}  Qh3 {[%clk 0:01:45]} 23. Bxc8 {[%clk 0:02:33]}  Qxc8 {[%clk 0:01:43]} 24. Qxd6 {[%clk 0:02:34]} 1-0


[Site "https://www.chess.com"]

[Event "Titled Tuesday Blitz July 25 Late 2023"]
[White "Nenezic, Marko"]
[Black "Kochiev, Ivan"]
[WhiteFideId "912123"]
[BlackFideId "2917890"]
[WhiteElo "2773"]
[BlackElo "2532"]
[Result "1-0"]
[Round "5"]
[TimeControl "180+2"]
[Date "2023.07.25"]
[WhiteClock "0:01:50"]
[BlackClock "0:01:29"]
[Board "44"]

1. d4 {[%clk 0:03:00]}  Nf6 {[%clk 0:02:59]} 2. c4 {[%clk 0:03:01]}  e6 {[%clk 0:02:56]} 3. Nc3 {[%clk 0:03:00]}  c5 {[%clk 0:02:57]} 4. d5 {[%clk 0:03:00]}  exd5 {[%clk 0:02:58]} 5. cxd5 {[%clk 0:03:01]}  d6 {[%clk 0:02:58]} 6. e4 {[%clk 0:03:01]}  g6 {[%clk 0:02:59]} 7. f4 {[%clk 0:03:02]}  Bg7 {[%clk 0:02:58]} 8. Bb5+ {[%clk 0:03:02]}  Nfd7 {[%clk 0:02:59]} 9. Nf3 {[%clk 0:03:02]}  O-O {[%clk 0:02:59]} 10. O-O {[%clk 0:03:02]}  Na6 {[%clk 0:02:58]} 11. Kh1 {[%clk 0:03:01]}  Rb8 {[%clk 0:02:49]} 12. f5 {[%clk 0:02:53]}  Nc7 {[%clk 0:02:41]} 13. Bxd7 {[%clk 0:02:47]}  Bxd7 {[%clk 0:02:41]} 14. Bg5 {[%clk 0:02:48]}  Qe8 {[%clk 0:02:22]} 15. f6 {[%clk 0:02:47]}  Bh8 {[%clk 0:02:20]} 16. Qe1 {[%clk 0:02:31]}  Nb5 {[%clk 0:02:17]} 17. Qh4 {[%clk 0:02:29]}  h5 {[%clk 0:02:02]} 18. Rae1 {[%clk 0:02:24]}  Qd8 {[%clk 0:01:56]} 19. e5 {[%clk 0:02:20]}  dxe5 {[%clk 0:01:44]} 20. Nxe5 {[%clk 0:02:12]}  Nd4 {[%clk 0:01:43]} 21. Nxg6 {[%clk 0:02:09]}  fxg6 {[%clk 0:01:29]} 22. f7+ {[%clk 0:02:08]}  Kh7 {[%clk 0:01:30]} 23. Bxd8 {[%clk 0:02:07]}  Rbxd8 {[%clk 0:01:29]} 24. Qxd8 {[%clk 0:01:50]} 1-0


[Site "https://www.chess.com"]

[Event "Titled Tuesday Blitz July 25 Late 2023"]
[White "Elsa167"]
[Black "Molenda, Marcin"]
[BlackFideId "1173065"]
[WhiteElo "2767"]
[BlackElo "2530"]
[Result "1-0"]
[Round "5"]
[TimeControl "180+2"]
[Date "2023.07.25"]
[WhiteClock "0:00:26"]
[BlackClock "0:00:42"]
[Board "46"]

1. d4 {[%clk 0:03:00]}  Nf6 {[%clk 0:02:59]} 2. c4 {[%clk 0:03:01]}  g6 {[%clk 0:02:59]} 3. Nc3 {[%clk 0:03:01]}  Bg7 {[%clk 0:02:59]} 4. e4 {[%clk 0:03:02]}  d6 {[%clk 0:03:00]} 5. h3 {[%clk 0:03:02]}  O-O {[%clk 0:03:00]} 6. Be3 {[%clk 0:03:03]}  Nbd7 {[%clk 0:02:59]} 7. Qd2 {[%clk 0:03:02]}  c5 {[%clk 0:02:53]} 8. d5 {[%clk 0:03:01]}  a6 {[%clk 0:02:53]} 9. Nf3 {[%clk 0:02:58]}  b5 {[%clk 0:02:53]} 10. cxb5 {[%clk 0:02:53]}  axb5 {[%clk 0:02:54]} 11. Bxb5 {[%clk 0:02:54]}  Ba6 {[%clk 0:02:48]} 12. Bxa6 {[%clk 0:02:50]}  Rxa6 {[%clk 0:02:49]} 13. O-O {[%clk 0:02:47]}  Qa8 {[%clk 0:02:49]} 14. Qc2 {[%clk 0:02:44]}  Rb8 {[%clk 0:02:49]} 15. Nd2 {[%clk 0:02:37]}  Nb6 {[%clk 0:02:43]} 16. b3 {[%clk 0:02:27]}  Nfd7 {[%clk 0:02:42]} 17. a4 {[%clk 0:02:17]}  Nc8 {[%clk 0:02:18]} 18. Rab1 {[%clk 0:01:57]}  Rb4 {[%clk 0:02:09]} 19. Nb5 {[%clk 0:01:54]}  Qb7 {[%clk 0:01:56]} 20. Nc4 {[%clk 0:01:54]}  Na7 {[%clk 0:01:48]} 21. Nxa7 {[%clk 0:01:42]}  Qxa7 {[%clk 0:01:41]} 22. Bd2 {[%clk 0:01:42]}  Rb8 {[%clk 0:01:33]} 23. Bc3 {[%clk 0:01:42]}  Bxc3 {[%clk 0:01:31]} 24. Qxc3 {[%clk 0:01:43]}  Rb4 {[%clk 0:01:29]} 25. e5 {[%clk 0:01:40]}  Nxe5 {[%clk 0:01:22]} 26. Nxe5 {[%clk 0:01:40]}  dxe5 {[%clk 0:01:23]} 27. Qxe5 {[%clk 0:01:40]}  Rab6 {[%clk 0:01:18]} 28. Rbc1 {[%clk 0:01:12]}  Rb7 {[%clk 0:01:11]} 29. d6 {[%clk 0:01:02]}  exd6 {[%clk 0:01:08]} 30. Qxd6 {[%clk 0:01:03]}  Rxb3 {[%clk 0:01:06]} 31. Rxc5 {[%clk 0:01:03]}  Rb8 {[%clk 0:00:58]} 32. a5 {[%clk 0:00:58]}  Ra3 {[%clk 0:00:58]} 33. Re5 {[%clk 0:00:45]}  Ra2 {[%clk 0:00:49]} 34. Re7 {[%clk 0:00:37]}  Rb7 {[%clk 0:00:45]} 35. Re8+ {[%clk 0:00:32]}  Kg7 {[%clk 0:00:45]} 36. Qf8+ {[%clk 0:00:27]}  Kf6 {[%clk 0:00:46]} 37. Qh8+ {[%clk 0:00:27]}  Kg5 {[%clk 0:00:42]} 38. Re5+ {[%clk 0:00:26]}  Kh6 {[%clk 0:00:42]} 39. Qf8# {[%clk 0:00:26]} 1-0


[Site "https://www.chess.com"]

[Event "Titled Tuesday Blitz July 25 Late 2023"]
[White "Tanenbaum, Zachary"]
[Black "Gasparyan, David"]
[WhiteFideId "2060850"]
[BlackFideId "13311980"]
[WhiteElo "2744"]
[BlackElo "2524"]
[Result "1-0"]
[Round "5"]
[TimeControl "180+2"]
[Date "2023.07.25"]
[WhiteClock "0:00:13"]
[BlackClock "0:00:00"]
[Board "48"]

1. e4 {[%clk 0:03:00]}  c5 {[%clk 0:02:44]} 2. Nf3 {[%clk 0:03:01]}  e6 {[%clk 0:02:43]} 3. d4 {[%clk 0:03:01]}  cxd4 {[%clk 0:02:43]} 4. Nxd4 {[%clk 0:03:02]}  Nc6 {[%clk 0:02:44]} 5. Nc3 {[%clk 0:03:01]}  Qc7 {[%clk 0:02:44]} 6. g3 {[%clk 0:03:02]}  h5 {[%clk 0:02:43]} 7. Ndb5 {[%clk 0:02:56]}  Qb8 {[%clk 0:02:41]} 8. Bf4 {[%clk 0:02:56]}  e5 {[%clk 0:02:41]} 9. Bg5 {[%clk 0:02:48]}  a6 {[%clk 0:02:38]} 10. Na3 {[%clk 0:02:45]}  Be7 {[%clk 0:02:28]} 11. Bxe7 {[%clk 0:02:38]}  Ngxe7 {[%clk 0:02:29]} 12. Nc4 {[%clk 0:02:38]}  O-O {[%clk 0:02:21]} 13. Nb6 {[%clk 0:02:32]}  Ra7 {[%clk 0:02:12]} 14. Qxh5 {[%clk 0:02:32]}  Qd6 {[%clk 0:02:08]} 15. Rd1 {[%clk 0:02:00]}  Qb4 {[%clk 0:02:06]} 16. Nc4 {[%clk 0:01:58]}  b5 {[%clk 0:02:06]} 17. a3 {[%clk 0:01:55]}  Qc5 {[%clk 0:02:05]} 18. Ne3 {[%clk 0:01:20]}  Nd4 {[%clk 0:02:00]} 19. Bd3 {[%clk 0:01:18]}  Rb7 {[%clk 0:01:48]} 20. Ncd5 {[%clk 0:01:09]}  Nxd5 {[%clk 0:01:37]} 21. Nxd5 {[%clk 0:01:09]}  f5 {[%clk 0:01:15]} 22. b4 {[%clk 0:01:03]}  Qd6 {[%clk 0:01:09]} 23. c3 {[%clk 0:01:02]}  fxe4 {[%clk 0:00:58]} 24. Bxe4 {[%clk 0:00:59]}  g6 {[%clk 0:00:49]} 25. Bxg6 {[%clk 0:00:43]}  Nc2+ {[%clk 0:00:30]} 26. Bxc2 {[%clk 0:00:41]}  Rf7 {[%clk 0:00:15]} 27. Qg5+ {[%clk 0:00:38]}  Kf8 {[%clk 0:00:12]} 28. Qd8+ {[%clk 0:00:34]}  Kg7 {[%clk 0:00:11]} 29. Qxc8 {[%clk 0:00:34]}  Rb8 {[%clk 0:00:07]} 30. Qc7 {[%clk 0:00:26]}  Qh6 {[%clk 0:00:04]} 31. Qxb8 {[%clk 0:00:22]}  d6 {[%clk 0:00:02]} 32. Ne3 {[%clk 0:00:15]}  Qf6 {[%clk 0:00:02]} 33. O-O {[%clk 0:00:15]}  Qg5 {[%clk 0:00:01]} 34. Nf5+ {[%clk 0:00:14]}  Rxf5 {[%clk 0:00:01]} 35. Bxf5 {[%clk 0:00:14]}  Qxf5 {[%clk 0:00:02]} 36. Rxd6 {[%clk 0:00:13]}  Qh3 {[%clk 0:00:00]} 37. Qc7+ {[%clk 0:00:13]} 1-0


[Site "https://www.chess.com"]

[Event "Titled Tuesday Blitz July 25 Late 2023"]
[White "Remizov, Yaroslav"]
[Black "Womacka, Mathias"]
[WhiteFideId "34134015"]
[BlackFideId "4611390"]
[WhiteElo "2742"]
[BlackElo "2521"]
[Result "1-0"]
[Round "5"]
[TimeControl "180+2"]
[Date "2023.07.25"]
[WhiteClock "0:00:11"]
[BlackClock "0:00:45"]
[Board "49"]

1. Nf3 {[%clk 0:03:00]}  c5 {[%clk 0:02:59]} 2. c4 {[%clk 0:03:00]}  Nf6 {[%clk 0:02:58]} 3. g3 {[%clk 0:03:00]}  b6 {[%clk 0:02:57]} 4. Bg2 {[%clk 0:03:00]}  Bb7 {[%clk 0:02:57]} 5. O-O {[%clk 0:03:01]}  e6 {[%clk 0:02:57]} 6. b3 {[%clk 0:03:01]}  Be7 {[%clk 0:02:57]} 7. Bb2 {[%clk 0:03:01]}  O-O {[%clk 0:02:56]} 8. e3 {[%clk 0:02:55]}  d5 {[%clk 0:02:54]} 9. Nc3 {[%clk 0:02:54]}  Nbd7 {[%clk 0:02:48]} 10. Qe2 {[%clk 0:02:50]}  a6 {[%clk 0:02:43]} 11. Rad1 {[%clk 0:02:47]}  Qc7 {[%clk 0:02:42]} 12. h3 {[%clk 0:02:21]}  Rab8 {[%clk 0:02:36]} 13. g4 {[%clk 0:02:19]}  dxc4 {[%clk 0:02:23]} 14. bxc4 {[%clk 0:02:19]}  Bc6 {[%clk 0:02:23]} 15. d4 {[%clk 0:02:10]}  cxd4 {[%clk 0:02:19]} 16. exd4 {[%clk 0:02:10]}  Rfe8 {[%clk 0:02:13]} 17. Qd3 {[%clk 0:01:45]}  Ba8 {[%clk 0:02:11]} 18. Rfe1 {[%clk 0:01:39]}  Rbc8 {[%clk 0:02:09]} 19. d5 {[%clk 0:01:33]}  Qxc4 {[%clk 0:02:04]} 20. dxe6 {[%clk 0:01:29]}  fxe6 {[%clk 0:02:00]} 21. Qxc4 {[%clk 0:01:26]}  Rxc4 {[%clk 0:02:01]} 22. Rxe6 {[%clk 0:01:26]}  Nc5 {[%clk 0:01:49]} 23. Re2 {[%clk 0:01:20]}  Rf4 {[%clk 0:01:29]} 24. Nd4 {[%clk 0:01:00]}  Bxg2 {[%clk 0:01:28]} 25. Kxg2 {[%clk 0:01:01]}  Bf8 {[%clk 0:01:18]} 26. Rxe8 {[%clk 0:00:44]}  Nxe8 {[%clk 0:01:19]} 27. Nf5 {[%clk 0:00:41]}  g6 {[%clk 0:01:12]} 28. Nd5 {[%clk 0:00:35]}  Ra4 {[%clk 0:01:07]} 29. Nfe3 {[%clk 0:00:14]}  Rxa2 {[%clk 0:01:06]} 30. Bd4 {[%clk 0:00:14]}  Kf7 {[%clk 0:01:01]} 31. Nc4 {[%clk 0:00:13]}  b5 {[%clk 0:01:00]} 32. Ne5+ {[%clk 0:00:13]}  Ke6 {[%clk 0:01:00]} 33. Nf4+ {[%clk 0:00:13]}  Ke7 {[%clk 0:00:59]} 34. Bxc5+ {[%clk 0:00:13]}  Kf6 {[%clk 0:00:59]} 35. Nd7+ {[%clk 0:00:13]}  Kf7 {[%clk 0:00:59]} 36. Nxf8 {[%clk 0:00:12]}  Nf6 {[%clk 0:00:56]} 37. Nd7 {[%clk 0:00:11]}  Ne4 {[%clk 0:00:55]} 38. Ne5+ {[%clk 0:00:11]}  Ke8 {[%clk 0:00:53]} 39. Be3 {[%clk 0:00:10]}  b4 {[%clk 0:00:53]} 40. Rd4 {[%clk 0:00:10]}  b3 {[%clk 0:00:50]} 41. Rxe4 {[%clk 0:00:11]}  b2 {[%clk 0:00:50]} 42. Ned3+ {[%clk 0:00:11]}  Kd7 {[%clk 0:00:50]} 43. Nxb2 {[%clk 0:00:11]}  Rxb2 {[%clk 0:00:45]} 44. Ra4 {[%clk 0:00:11]} 1-0


[Site "https://www.chess.com"]

[Event "Titled Tuesday Blitz July 25 Late 2023"]
[White "Olsson, William"]
[Black "Jaracz, Pawel"]
[WhiteFideId "1741721"]
[BlackFideId "1102222"]
[WhiteElo "2452"]
[BlackElo "2694"]
[Result "0-1"]
[Round "5"]
[TimeControl "180+2"]
[Date "2023.07.25"]
[WhiteClock "0:00:09"]
[BlackClock "0:01:55"]
[Board "52"]

1. c4 {[%clk 0:03:00]}  Nf6 {[%clk 0:02:56]} 2. g3 {[%clk 0:03:01]}  e6 {[%clk 0:02:54]} 3. Nf3 {[%clk 0:03:00]}  d5 {[%clk 0:02:54]} 4. Bg2 {[%clk 0:03:00]}  dxc4 {[%clk 0:02:54]} 5. Qa4+ {[%clk 0:03:00]}  c6 {[%clk 0:02:54]} 6. Qxc4 {[%clk 0:02:59]}  b5 {[%clk 0:02:54]} 7. Qc2 {[%clk 0:02:59]}  Bb7 {[%clk 0:02:55]} 8. O-O {[%clk 0:02:58]}  Nbd7 {[%clk 0:02:55]} 9. d4 {[%clk 0:02:58]}  Rc8 {[%clk 0:02:54]} 10. Ne5 {[%clk 0:02:55]}  Nxe5 {[%clk 0:02:52]} 11. dxe5 {[%clk 0:02:55]}  Nd5 {[%clk 0:02:52]} 12. a4 {[%clk 0:02:49]}  Be7 {[%clk 0:02:48]} 13. Nd2 {[%clk 0:02:42]}  a6 {[%clk 0:02:30]} 14. Qb3 {[%clk 0:02:29]}  Qc7 {[%clk 0:02:24]} 15. Nf3 {[%clk 0:02:07]}  O-O {[%clk 0:02:24]} 16. e4 {[%clk 0:01:59]}  Nb4 {[%clk 0:02:22]} 17. Bd2 {[%clk 0:01:39]}  c5 {[%clk 0:02:16]} 18. Bxb4 {[%clk 0:01:34]}  cxb4 {[%clk 0:02:15]} 19. axb5 {[%clk 0:01:34]}  axb5 {[%clk 0:02:13]} 20. Qd3 {[%clk 0:00:49]}  Qc4 {[%clk 0:02:07]} 21. Ne1 {[%clk 0:00:28]}  Rfd8 {[%clk 0:02:04]} 22. Qf3 {[%clk 0:00:16]}  Qd4 {[%clk 0:01:56]} 23. b3 {[%clk 0:00:09]}  Qxa1 {[%clk 0:01:55]} 0-1


[Site "https://www.chess.com"]

[Event "Titled Tuesday Blitz July 25 Late 2023"]
[White "Indjic, Aleksandar"]
[Black "EsmeraldasAnderson03"]
[WhiteFideId "911925"]
[WhiteElo "2953"]
[BlackElo "2418"]
[Result "0-1"]
[Round "5"]
[TimeControl "180+2"]
[Date "2023.07.25"]
[WhiteClock "0:00:42"]
[BlackClock "0:00:26"]
[Board "54"]

1. d4 {[%clk 0:02:59]}  d5 {[%clk 0:02:59]} 2. c4 {[%clk 0:02:53]}  dxc4 {[%clk 0:03:00]} 3. e4 {[%clk 0:02:53]}  Nf6 {[%clk 0:02:58]} 4. e5 {[%clk 0:02:52]}  Nd5 {[%clk 0:02:58]} 5. Bxc4 {[%clk 0:02:52]}  Nb6 {[%clk 0:02:58]} 6. Bd3 {[%clk 0:02:51]}  Nc6 {[%clk 0:02:58]} 7. Ne2 {[%clk 0:02:52]}  Bg4 {[%clk 0:02:54]} 8. f3 {[%clk 0:02:48]}  Bh5 {[%clk 0:02:53]} 9. Nbc3 {[%clk 0:02:47]}  Qd7 {[%clk 0:02:52]} 10. Be3 {[%clk 0:02:45]}  O-O-O {[%clk 0:02:52]} 11. Be4 {[%clk 0:02:39]}  e6 {[%clk 0:02:52]} 12. Bf2 {[%clk 0:02:36]}  Bg6 {[%clk 0:02:47]} 13. O-O {[%clk 0:02:34]}  h5 {[%clk 0:02:27]} 14. a4 {[%clk 0:02:28]}  Nd5 {[%clk 0:02:15]} 15. Nxd5 {[%clk 0:02:20]}  exd5 {[%clk 0:02:13]} 16. Bxg6 {[%clk 0:02:19]}  fxg6 {[%clk 0:02:14]} 17. Qc2 {[%clk 0:02:02]}  Qf5 {[%clk 0:02:12]} 18. Qxf5+ {[%clk 0:01:38]}  gxf5 {[%clk 0:02:11]} 19. Bh4 {[%clk 0:01:38]}  Be7 {[%clk 0:02:07]} 20. Bxe7 {[%clk 0:01:38]}  Nxe7 {[%clk 0:02:08]} 21. h4 {[%clk 0:01:37]}  Ng6 {[%clk 0:02:05]} 22. Kf2 {[%clk 0:01:16]}  Nxh4 {[%clk 0:01:35]} 23. Nf4 {[%clk 0:01:15]}  g5 {[%clk 0:01:36]} 24. Rh1 {[%clk 0:01:15]}  Nxf3 {[%clk 0:01:26]} 25. gxf3 {[%clk 0:01:14]}  gxf4 {[%clk 0:01:26]} 26. Rh4 {[%clk 0:01:14]}  Rdg8 {[%clk 0:01:19]} 27. Rxf4 {[%clk 0:01:13]}  h4 {[%clk 0:01:20]} 28. Rg1 {[%clk 0:00:53]}  h3 {[%clk 0:01:09]} 29. Rxg8+ {[%clk 0:00:52]}  Rxg8 {[%clk 0:01:10]} 30. Rh4 {[%clk 0:00:51]}  Rg2+ {[%clk 0:01:10]} 31. Ke3 {[%clk 0:00:51]}  h2 {[%clk 0:01:02]} 32. b4 {[%clk 0:00:50]}  b6 {[%clk 0:00:39]} 33. Kf4 {[%clk 0:00:49]}  Rd2 {[%clk 0:00:29]} 34. Rxh2 {[%clk 0:00:45]}  Rxh2 {[%clk 0:00:27]} 35. Kxf5 {[%clk 0:00:42]}  Kd7 {[%clk 0:00:26]} 0-1


[Site "https://www.chess.com"]

[Event "Titled Tuesday Blitz July 25 Late 2023"]
[White "Mahdavirad, Mehdi"]
[Black "Stoyanov, Tsvetan"]
[WhiteFideId "12502669"]
[BlackFideId "2917173"]
[WhiteElo "2549"]
[BlackElo "2775"]
[Result "1-0"]
[Round "5"]
[TimeControl "180+2"]
[Date "2023.07.25"]
[WhiteClock "0:00:14"]
[BlackClock "0:00:00"]
[Board "55"]

1. b3 {[%clk 0:03:00]}  d5 {[%clk 0:03:00]} 2. Bb2 {[%clk 0:03:00]}  Bf5 {[%clk 0:03:00]} 3. e3 {[%clk 0:02:59]}  Nd7 {[%clk 0:03:01]} 4. Nf3 {[%clk 0:03:00]}  e6 {[%clk 0:03:01]} 5. d3 {[%clk 0:03:00]}  h6 {[%clk 0:03:01]} 6. Nbd2 {[%clk 0:03:01]}  Ngf6 {[%clk 0:03:02]} 7. h3 {[%clk 0:03:01]}  c6 {[%clk 0:03:02]} 8. a3 {[%clk 0:03:01]}  Bh7 {[%clk 0:03:03]} 9. g4 {[%clk 0:03:01]}  a5 {[%clk 0:03:02]} 10. Rg1 {[%clk 0:03:01]}  Qc7 {[%clk 0:02:56]} 11. h4 {[%clk 0:02:56]}  O-O-O {[%clk 0:02:53]} 12. Qe2 {[%clk 0:02:48]}  h5 {[%clk 0:02:47]} 13. gxh5 {[%clk 0:02:20]}  Bf5 {[%clk 0:02:37]} 14. e4 {[%clk 0:02:13]}  dxe4 {[%clk 0:02:16]} 15. dxe4 {[%clk 0:02:14]}  Bg4 {[%clk 0:02:15]} 16. e5 {[%clk 0:02:07]}  Bxf3 {[%clk 0:02:14]} 17. Nxf3 {[%clk 0:02:06]}  Nxh5 {[%clk 0:02:13]} 18. O-O-O {[%clk 0:01:48]}  Bc5 {[%clk 0:02:05]} 19. Ng5 {[%clk 0:01:38]}  Nf4 {[%clk 0:01:43]} 20. Qe4 {[%clk 0:01:27]}  Rxh4 {[%clk 0:01:17]} 21. Nxf7 {[%clk 0:01:25]}  Rf8 {[%clk 0:00:59]} 22. Rxg7 {[%clk 0:01:23]}  Be7 {[%clk 0:00:22]} 23. Nd6+ {[%clk 0:01:17]}  Bxd6 {[%clk 0:00:23]} 24. Rxd6 {[%clk 0:01:02]}  Rd8 {[%clk 0:00:22]} 25. Kb1 {[%clk 0:00:57]}  Qb6 {[%clk 0:00:21]} 26. Bd4 {[%clk 0:00:49]}  Qc7 {[%clk 0:00:13]} 27. Be3 {[%clk 0:00:44]}  Nh5 {[%clk 0:00:06]} 28. Rg4 {[%clk 0:00:20]}  Rxg4 {[%clk 0:00:03]} 29. Qxg4 {[%clk 0:00:21]}  Rh8 {[%clk 0:00:02]} 30. Qxe6 {[%clk 0:00:20]}  Ng7 {[%clk 0:00:02]} 31. Qg4 {[%clk 0:00:20]}  Ne8 {[%clk 0:00:00]} 32. Re6 {[%clk 0:00:14]} 1-0


[Site "https://www.chess.com"]

[Event "Titled Tuesday Blitz July 25 Late 2023"]
[White "Chor, Kevin"]
[Black "Bernabeu Lopez, Carlos Javier"]
[WhiteFideId "2090740"]
[BlackFideId "2235366"]
[WhiteElo "2524"]
[BlackElo "2660"]
[Result "1-0"]
[Round "5"]
[TimeControl "180+2"]
[Date "2023.07.25"]
[WhiteClock "0:00:17"]
[BlackClock "0:01:22"]
[Board "59"]

1. e4 {[%clk 0:03:00]}  e5 {[%clk 0:02:55]} 2. Nf3 {[%clk 0:03:01]}  Nf6 {[%clk 0:02:55]} 3. Nxe5 {[%clk 0:02:49]}  Nxe4 {[%clk 0:02:55]} 4. d4 {[%clk 0:02:35]}  d6 {[%clk 0:02:54]} 5. Nf3 {[%clk 0:02:34]}  Be7 {[%clk 0:02:54]} 6. Bd3 {[%clk 0:02:32]}  Nf6 {[%clk 0:02:55]} 7. O-O {[%clk 0:02:32]}  O-O {[%clk 0:02:56]} 8. h3 {[%clk 0:02:32]}  Nc6 {[%clk 0:02:54]} 9. c4 {[%clk 0:02:28]}  Nb4 {[%clk 0:02:54]} 10. Be2 {[%clk 0:02:28]}  Bf5 {[%clk 0:02:54]} 11. Na3 {[%clk 0:02:28]}  d5 {[%clk 0:02:51]} 12. Be3 {[%clk 0:02:08]}  dxc4 {[%clk 0:02:47]} 13. Nxc4 {[%clk 0:02:09]}  Nbd5 {[%clk 0:02:48]} 14. Bg5 {[%clk 0:02:01]}  c6 {[%clk 0:02:48]} 15. Nfe5 {[%clk 0:01:59]}  Bg6 {[%clk 0:02:43]} 16. Qb3 {[%clk 0:01:56]}  Rb8 {[%clk 0:02:40]} 17. Rfd1 {[%clk 0:01:53]}  Nd7 {[%clk 0:02:37]} 18. Bxe7 {[%clk 0:01:49]}  Qxe7 {[%clk 0:02:37]} 19. Nxd7 {[%clk 0:01:47]}  Qxd7 {[%clk 0:02:37]} 20. Ne5 {[%clk 0:01:47]}  Qd6 {[%clk 0:02:35]} 21. Rac1 {[%clk 0:01:36]}  Nb6 {[%clk 0:02:22]} 22. a4 {[%clk 0:01:31]}  Nd7 {[%clk 0:02:21]} 23. Nc4 {[%clk 0:01:23]}  Qe7 {[%clk 0:02:17]} 24. Bf3 {[%clk 0:01:21]}  Rfe8 {[%clk 0:02:14]} 25. Ne3 {[%clk 0:01:18]}  Nf6 {[%clk 0:02:10]} 26. a5 {[%clk 0:01:17]}  Be4 {[%clk 0:02:09]} 27. Bxe4 {[%clk 0:01:13]}  Qxe4 {[%clk 0:02:10]} 28. d5 {[%clk 0:01:03]}  cxd5 {[%clk 0:02:04]} 29. Nxd5 {[%clk 0:01:03]}  Nxd5 {[%clk 0:02:04]} 30. Rxd5 {[%clk 0:01:04]}  Re7 {[%clk 0:01:56]} 31. a6 {[%clk 0:00:55]}  Qf4 {[%clk 0:01:34]} 32. Rcd1 {[%clk 0:00:46]}  bxa6 {[%clk 0:01:33]} 33. Qa3 {[%clk 0:00:29]}  Rbe8 {[%clk 0:01:28]} 34. Qxe7 {[%clk 0:00:16]}  Rxe7 {[%clk 0:01:22]} 35. Rd8+ {[%clk 0:00:16]}  Re8 {[%clk 0:01:22]} 36. Rxe8# {[%clk 0:00:17]} 1-0


[Site "https://www.chess.com"]